bitfinex-derivatives/quotes_ETHF0:USTF0_20241007
["timestamp","ask_amount","ask_price","bid_price","bid_amount"]
[1728300356701,0.3843,2456.9,2456.8,3.61493]
[1728300357117,0.79141,2456.9,2456.8,3.61493]
[1728300359800,0.79141,2456.9,2456.8,3.2078]
[1728300360641,0.40718,2456.6,2456.4,0.81668]
[1728300360754,0.82308,2456.5,2456.4,0.4095]
[1728300361417,0.4159,2456.5,2456.1,3.2078]
[1728300361600,0.40723,2456.2,2456.1,3.61504]
[1728300361798,3.81,2456.3,2456.2,0.40723]
[1728300361799,4.21723,2456.3,2456.2,0.40723]
[1728300362098,0.40723,2456.3,2456.2,0.40723]
[1728300362703,1.8334,2456.4,2456.1,3.2078]
[1728300362903,0.40723,2456.2,2456.1,3.61503]
[1728300363314,1.42535,2456.2,2456.0,0.40726]
[1728300363494,3.81,2456.3,2455.8,3.2078]
[1728300363495,4.21725,2456.1,2455.8,3.2078]
[1728300363705,3.2078,2456.3,2456.1,0.40724]
[1728300363706,0.40724,2456.2,2456.1,0.40724]
[1728300364399,0.40722,2456.3,2456.2,0.40721]
[1728300364600,0.40724,2456.2,2456.1,0.40724]
[1728300365925,0.40724,2456.2,2455.8,4.22604]
[1728300365926,0.40725,2456.1,2456.0,0.40725]
[1728300366428,4.82805,2456.3,2455.8,4.22604]
[1728300366628,0.40725,2456.2,2456.1,0.40724]
[1728300367011,0.40725,2456.1,2456.0,0.40725]
[1728300367409,4.82805,2456.3,2455.8,4.22604]
[1728300367609,0.40724,2456.2,2456.1,0.40723]
[1728300369712,3.81,2456.3,2456.2,0.40723]
[1728300369924,0.8154,2456.4,2456.3,0.40721]
[1728300370216,0.3984,2456.4,2456.3,0.40721]
[1728300374010,3.81,2456.9,2456.3,5.08924]
[1728300374319,0.4132,2456.6,2456.5,0.40718]
[1728300375912,0.4132,2456.6,2456.5,10.47758]
[1728300376273,0.4172,2456.9,2456.8,0.40713]
[1728300376479,0.8066,2456.9,2456.8,0.40713]
[1728300377313,0.8066,2456.9,2456.8,0.81403]
[1728300381018,0.40704,2457.4,2457.2,0.40705]
[1728300381227,0.095,2457.9,2457.8,0.40696]
[1728300381475,0.3858,2457.9,2457.8,3.61476]
[1728300381724,0.3858,2457.9,2457.8,7.68356]
[1728300382018,0.3864,2458.2,2458.1,0.40692]
[1728300382231,0.3858,2458.3,2458.1,3.2078]
[1728300382411,0.3858,2458.3,2458.2,0.4069]
[1728300383920,0.3864,2458.6,2458.5,0.40685]
[1728300386519,0.3864,2458.6,2458.4,3.2078]
[1728300386922,0.3864,2458.6,2458.0,1.01732]
[1728300386923,0.40685,2458.5,2458.0,1.01732]
[1728300387223,0.40685,2458.5,2458.4,0.40687]
[1728300388326,4.60325,2458.6,2458.4,0.40687]
[1728300388527,4.1964,2458.6,2458.5,0.40685]
[1728300388876,0.3864,2458.6,2458.5,0.40685]
[1728300389323,0.4049,2458.7,2458.6,0.40683]
[1728300390233,3.2078,2459.0,2458.6,0.40683]
[1728300390430,3.2078,2459.0,2458.9,0.40678]
[1728300390929,4.21674,2459.2,2459.0,0.40675]
[1728300391127,4.21674,2459.2,2458.7,4.22483]
[1728300391432,0.40674,2459.2,2459.0,0.40676]
[1728300391726,0.40675,2459.1,2459.0,0.40676]
[1728300391922,4.4921,2459.3,2458.7,3.2078]
[1728300392131,0.40676,2459.1,2458.9,0.40678]
[1728300392625,0.4257,2459.3,2459.0,0.40676]
[1728300392829,0.40674,2459.2,2459.0,0.40676]
[1728300393032,0.4257,2459.3,2459.0,0.40676]
[1728300393227,0.4257,2459.3,2458.7,3.2078]
[1728300393228,1.01684,2459.2,2458.8,0.40679]
[1728300393425,1.01688,2459.1,2458.7,0.40681]
[1728300393625,0.4068,2458.8,2458.7,0.40681]
[1728300393839,0.40679,2458.9,2458.7,0.40681]
[1728300394047,0.8209,2458.8,2458.7,0.40681]
[1728300394644,0.40682,2458.7,2458.6,0.40682]
[1728300394938,0.40682,2458.7,2458.5,4.63213]
[1728300395138,0.4141,2458.8,2458.5,4.2253]
[1728300395359,0.40683,2458.6,2458.5,4.63214]
[1728300395638,0.40683,2458.6,2458.5,0.82214]
[1728300397032,0.40683,2458.6,2458.5,0.4153]
[1728300397233,1.43111,2458.8,2458.1,7.0178]
[1728300397234,1.01707,2458.7,2458.1,7.0178]
[1728300397435,0.4069,2458.2,2458.1,3.6147]
[1728300397639,1.42413,2458.3,2458.1,3.2078]
[1728300397939,0.40694,2458.0,2457.9,0.40693]
[1728300398530,0.40692,2458.2,2458.1,0.40691]
[1728300398738,0.40693,2458.1,2458.0,0.40692]
[1728300399649,0.40691,2458.2,2458.1,0.4069]
[1728300400150,0.82189,2458.3,2458.2,0.4069]
[1728300401743,0.415,2458.3,2458.2,0.4069]
[1728300402144,0.415,2458.3,2458.2,0.8133]
[1728300402848,0.388,2458.5,2458.2,4.6233]
[1728300403042,0.388,2458.5,2458.4,3.61467]
[1728300403658,0.79485,2458.5,2458.4,0.40687]
[1728300404250,0.79485,2458.5,2458.2,0.81329]
[1728300405048,0.388,2458.5,2458.3,0.40688]
[1728300405243,0.79485,2458.5,2458.2,0.81329]
[1728300405654,0.388,2458.5,2458.2,0.4064]
[1728300405915,0.40688,2458.3,2458.2,0.4064]
[1728300406084,0.40688,2458.3,2458.1,3.2078]
[1728300406404,0.388,2458.5,2458.4,0.40687]
[1728300408070,0.79485,2458.5,2458.4,0.40687]
[1728300412250,0.40688,2458.4,2458.3,0.40687]
[1728300412469,0.40688,2458.4,2458.1,7.0178]
[1728300412470,1.01717,2458.4,2458.1,3.2078]
[1728300412751,0.40694,2458.1,2458.0,0.40693]
[1728300413353,0.81854,2458.1,2458.0,0.40693]
[1728300416568,0.40693,2458.0,2457.9,7.42474]
[1728300416748,0.79713,2458.0,2457.9,7.42474]
[1728300417653,0.79713,2458.0,2457.9,3.61474]
[1728300417867,0.40695,2457.9,2457.8,0.82456]
[1728300418045,0.40695,2457.9,2457.8,0.4176]
[1728300418257,0.40698,2457.7,2457.6,3.61479]
[1728300420355,0.3902,2458.0,2457.6,8.0353]
[1728300420559,0.79715,2458.0,2457.9,0.40695]
[1728300422658,0.3902,2458.0,2457.9,0.40695]
[1728300422860,0.81852,2458.1,2458.0,0.40693]
[1728300422861,0.4116,2458.1,2458.0,0.40693]
[1728300423162,1.01717,2458.4,2458.3,0.40688]
[1728300423163,0.79557,2458.4,2458.3,0.40688]
[1728300423363,1.18417,2458.4,2458.3,0.40688]
[1728300423554,0.7773,2458.4,2458.3,0.40688]
[1728300423760,0.7773,2458.4,2458.3,0.81678]
[1728300424156,1.18417,2458.4,2458.3,0.81678]
[1728300424895,0.7773,2458.4,2458.3,0.81678]
[1728300425462,1.18417,2458.4,2458.3,0.81678]
[1728300425664,0.7773,2458.4,2458.3,0.81678]
[1728300426264,0.3886,2458.4,2458.3,0.81678]
[1728300426666,0.79547,2458.4,2458.3,0.81678]
[1728300429669,0.79547,2458.4,2458.2,3.2078]
[1728300429670,0.40688,2458.3,2458.2,3.2078]
[1728300430156,0.40688,2458.3,2457.9,0.4148]
[1728300430157,0.40693,2458.1,2458.0,0.40693]
[1728300430464,0.40693,2458.0,2457.9,0.82173]
[1728300430661,0.3887,2458.2,2457.9,0.4148]
[1728300430869,0.40693,2458.1,2458.0,0.40692]
[1728300432177,0.40693,2458.1,2457.9,3.6226]
[1728300432460,0.40696,2457.8,2457.7,4.19]
[1728300432657,1.42124,2458.0,2457.6,3.2078]
[1728300432870,1.21338,2457.7,2457.6,3.61479]
[1728300433463,1.21338,2457.7,2457.6,0.40699]
[1728300435001,0.40695,2458.0,2457.9,0.40693]
[1728300435167,0.79085,2458.0,2457.9,0.40693]
[1728300435370,0.79083,2458.0,2457.9,0.40693]
[1728300436375,0.3839,2458.0,2457.9,0.40693]
[1728300437466,0.79083,2458.0,2457.9,0.40693]
[1728300437667,0.40695,2457.9,2457.8,3.61475]
[1728300443376,0.79085,2458.0,2457.9,0.40695]
[1728300443588,0.3839,2458.0,2457.9,0.40695]
[1728300443775,0.3839,2458.0,2457.9,4.47575]
[1728300444283,0.3839,2458.0,2457.9,4.87835]
[1728300445981,0.79083,2458.0,2457.9,0.80955]
[1728300446176,0.79083,2458.0,2457.9,0.40695]
[1728300448684,0.3839,2458.0,2457.9,7.68355]
[1728300453486,0.79083,2458.0,2457.9,7.68355]
[1728300454189,0.79083,2458.0,2457.9,3.61475]
[1728300455778,0.3839,2458.0,2457.9,3.61475]
[1728300456176,0.79083,2458.0,2457.9,3.61475]
[1728300456593,0.3839,2458.0,2457.9,3.61475]
[1728300457187,0.79083,2458.0,2457.9,3.61475]
[1728300457487,0.3839,2458.0,2457.9,3.61475]
[1728300458095,0.79083,2458.0,2457.9,3.61475]
[1728300459390,0.3839,2458.0,2457.9,3.61475]
[1728300460291,0.79083,2458.0,2457.9,3.61475]
[1728300461090,0.3839,2458.0,2457.9,3.61475]
[1728300461894,0.79083,2458.0,2457.9,3.61475]
[1728300464122,0.79083,2458.0,2457.9,0.40695]
[1728300464293,0.3839,2458.0,2457.9,0.40695]
[1728300464502,0.3839,2458.0,2457.9,3.61475]
[1728300464812,0.79083,2458.0,2457.9,3.61475]
[1728300465102,0.3839,2458.0,2457.9,3.61475]
[1728300465507,0.11,2459.0,2457.9,13.2766]
[1728300465699,0.4082,2458.5,2458.4,0.40687]
[1728300466003,1.43821,2458.8,2458.7,0.40682]
[1728300466004,0.4212,2458.8,2458.7,0.40682]
[1728300466297,0.4212,2458.8,2458.7,7.42462]
[1728300466892,0.4212,2458.8,2458.7,3.61462]
[1728300467501,0.828,2458.8,2458.7,3.61462]
[1728300468806,0.4212,2458.8,2458.7,3.61462]
[1728300470198,0.4212,2458.8,2458.7,7.42462]
[1728300471909,0.4082,2458.9,2458.8,0.4068]
[1728300472316,0.4082,2458.9,2458.8,0.8167]
[1728300473619,0.4067,2459.4,2459.3,0.40672]
[1728300473815,0.7937,2459.4,2459.3,7.42452]
[1728300474117,0.387,2459.4,2459.3,7.42452]
[1728300474423,0.7937,2459.4,2459.3,7.42452]
[1728300474644,0.387,2459.4,2459.3,7.42452]
[1728300475074,0.7791,2459.4,2459.3,7.42452]
[1728300475423,1.1858,2459.4,2459.3,7.42452]
[1728300475713,0.7791,2459.4,2459.3,7.42452]
[1728300479518,0.40663,2459.9,2459.3,7.0178]
[1728300479817,0.40664,2459.8,2459.7,0.40663]
[1728300480011,4.47224,2459.8,2459.7,0.40663]
[1728300480214,3.4078,2460.0,2459.6,3.6179]
[1728300480418,0.40664,2459.8,2459.7,0.40663]
[1728300480721,0.4067,2459.5,2459.4,0.40669]
[1728300480914,0.4067,2459.4,2459.3,3.61451]
[1728300481309,0.4067,2459.5,2459.4,0.40669]
[1728300481515,1.01671,2459.6,2459.3,3.2078]
[1728300481713,0.40675,2459.1,2459.0,4.02466]
[1728300481920,0.40675,2459.1,2459.0,3.61456]
[1728300482513,0.40678,2459.0,2458.9,0.40677]
[1728300482719,0.4068,2458.8,2458.7,3.2078]
[1728300482929,4.4631,2458.9,2458.4,3.2078]
[1728300483119,0.40685,2458.5,2458.4,2.5692]
[1728300483531,4.47485,2458.5,2458.4,2.5692]
[1728300483966,4.068,2458.5,2458.4,2.5692]
[1728300484170,0.8332,2458.7,2458.5,0.40685]
[1728300484323,0.8332,2458.7,2458.4,2.5692]
[1728300484324,0.8332,2458.7,2458.6,4.21683]
[1728300486121,0.4111,2458.7,2458.6,4.21683]
[1728300486524,0.4111,2458.7,2458.6,8.28403]
[1728300488519,0.4111,2458.7,2458.6,4.21683]
[1728300492029,0.40676,2459.1,2459.0,0.40675]
[1728300492218,0.40678,2459.0,2458.9,0.40677]
[1728300493128,0.4097,2459.1,2459.0,0.40677]
[1728300493948,0.81645,2459.1,2459.0,0.40677]
[1728300494226,0.40678,2459.0,2458.9,0.40677]
[1728300494425,0.40678,2458.9,2458.8,3.61459]
[1728300496137,1.20318,2459.0,2458.9,0.40678]
[1728300497927,1.20318,2459.0,2458.5,3.2078]
[1728300497928,1.01697,2458.9,2458.5,3.2078]
[1728300498134,0.40688,2458.4,2458.3,0.40687]
[1728300498428,0.40686,2458.5,2458.4,0.40685]
[1728300498620,0.82396,2458.5,2458.4,0.40685]
[1728300500224,0.82396,2458.5,2458.2,3.2078]
[1728300500431,0.40688,2458.4,2458.3,0.40687]
[1728300502531,0.40688,2458.3,2458.2,3.2078]
[1728300502739,0.4069,2458.2,2458.1,0.40691]
[1728300502941,0.40693,2458.1,2458.0,0.40692]
[1728300503138,0.81973,2458.1,2458.0,0.40692]
[1728300503640,0.40693,2458.0,2457.9,3.2078]
[1728300503779,0.40693,2458.0,2457.9,3.61475]
[1728300504233,0.40693,2458.0,2457.9,3.2078]
[1728300504431,0.81753,2458.0,2457.9,3.2078]
[1728300505439,4.88633,2458.0,2457.9,3.2078]
[1728300506944,0.81753,2458.0,2457.9,3.2078]
[1728300507133,0.81753,2458.0,2457.5,0.502]
[1728300507134,0.407,2457.6,2457.5,0.502]
[1728300507338,0.407,2457.6,2457.5,0.407]
[1728300507743,4.0688,2457.6,2457.3,3.2078]
[1728300507943,4.0688,2457.6,2457.3,3.61484]
[1728300507944,0.40703,2457.4,2457.3,3.61484]
[1728300508143,0.40703,2457.4,2457.3,3.2078]
[1728300509339,0.40703,2457.4,2457.0,0.4043]
[1728300509340,0.4071,2457.1,2457.0,3.61489]
[1728300510143,0.3924,2457.2,2457.0,3.2078]
[1728300510447,0.79948,2457.2,2457.1,0.40708]
[1728300510946,0.40708,2457.1,2457.0,3.6149]
[1728300511136,0.79948,2457.1,2457.0,3.6149]
[1728300511744,0.40711,2456.9,2456.8,0.81143]
[1728300511951,3.81,2456.9,2456.6,0.40716]
[1728300512139,0.40715,2456.7,2456.6,0.40716]
[1728300512660,0.40714,2456.8,2456.7,0.40714]
[1728300514551,0.79182,2456.9,2456.8,0.40713]
[1728300514846,7.0178,2457.3,2456.8,0.40713]
[1728300514847,0.40708,2457.2,2457.0,0.4071]
[1728300515048,3.99955,2457.3,2456.9,0.4024]
[1728300515239,3.99955,2457.3,2457.2,0.40706]
[1728300516129,3.5925,2457.3,2456.9,0.4024]
[1728300516346,3.99956,2457.3,2457.2,0.40706]
[1728300516845,0.79175,2457.3,2457.2,0.40706]
[1728300517046,1.01749,2457.7,2457.4,0.40702]
[1728300517248,0.40701,2457.6,2457.5,0.40699]
[1728300517449,0.407,2457.7,2457.6,0.40699]
[1728300517646,0.40701,2457.6,2457.5,0.407]
[1728300523052,1.82125,2457.8,2457.4,0.4056]
[1728300523353,0.40699,2457.7,2457.6,0.40698]
[1728300524544,0.40694,2458.0,2457.9,0.40694]
[1728300524742,0.40695,2457.9,2457.8,0.40695]
[1728300524955,1.0173,2458.1,2457.6,8.0353]
[1728300525152,0.40694,2458.0,2457.9,0.40694]
[1728300525464,0.40696,2457.9,2457.8,0.40695]
[1728300527461,0.40698,2457.7,2457.6,3.2078]
[1728300527857,4.47578,2457.7,2457.6,3.2078]
[1728300528157,0.40701,2457.5,2457.4,0.40703]
[1728300529167,0.40703,2457.5,2457.4,0.40702]
[1728300529462,0.40705,2457.4,2457.3,0.40704]
[1728300530852,1.01754,2457.5,2457.2,3.2078]
[1728300531063,0.40705,2457.3,2457.2,3.2078]
[1728300531458,0.40705,2457.3,2457.2,3.61486]
[1728300531852,0.40705,2457.3,2457.2,3.2078]
[1728300531853,4.47665,2457.3,2457.2,3.2078]
[1728300532364,4.47665,2457.3,2457.2,3.61486]
[1728300533056,4.47665,2457.3,2457.2,0.40706]
[1728300533262,0.40708,2457.2,2457.1,0.40707]
[1728300533569,0.80418,2457.2,2457.1,0.40707]
[1728300533759,4.87376,2457.2,2457.1,0.40707]
[1728300534754,4.4667,2457.2,2457.1,0.40707]
[1728300535056,4.87376,2457.2,2457.1,0.40707]
[1728300536161,0.4071,2457.1,2456.7,3.2078]
[1728300536356,1.01775,2457.0,2456.7,3.2078]
[1728300536664,0.40714,2456.8,2456.7,0.40713]
[1728300537166,0.40714,2456.8,2456.6,0.40715]
[1728300537167,0.40717,2456.7,2456.6,0.40715]
[1728300537358,0.82437,2456.7,2456.6,0.40715]
[1728300538456,0.4172,2456.7,2456.6,0.40715]
[1728300539268,0.82435,2456.7,2456.6,0.40715]
[1728300540463,0.4172,2456.7,2456.6,0.40715]
[1728300542959,0.82435,2456.7,2456.6,0.40715]
[1728300543969,0.4172,2456.7,2456.6,0.40715]
[1728300544158,0.4172,2456.7,2456.5,0.4119]
[1728300544357,0.4172,2456.7,2456.5,0.81907]
[1728300544358,0.40716,2456.6,2456.5,0.81907]
[1728300545267,0.40723,2456.3,2456.2,0.40722]
[1728300545470,0.40723,2456.3,2456.1,0.40724]
[1728300545471,0.40725,2456.2,2456.1,0.40724]
[1728300545656,1.21275,2456.2,2456.1,0.40724]
[1728300545869,1.62595,2456.2,2456.1,0.40725]
[1728300546780,1.62595,2456.2,2456.0,0.4119]
[1728300546781,1.2187,2456.2,2456.0,0.4119]
[1728300546969,1.62595,2456.2,2456.1,0.40725]
[1728300547168,5.69715,2456.2,2456.1,0.40725]
[1728300548566,0.40725,2456.1,2456.0,0.81915]
[1728300550167,1.62595,2456.2,2456.1,0.40725]
[1728300550571,5.69715,2456.2,2456.1,0.40725]
[1728300550774,1.62595,2456.2,2456.1,0.40725]
[1728300550970,1.62595,2456.2,2456.0,0.4119]
[1728300550971,5.2899,2456.2,2456.0,0.4119]
[1728300551170,0.40725,2456.1,2456.0,0.81915]
[1728300554170,0.40725,2456.1,2456.0,0.4119]
[1728300554370,4.82816,2456.1,2455.6,3.3028]
[1728300554566,0.40731,2455.8,2455.7,0.40729]
[1728300558389,0.40731,2455.7,2455.6,4.03072]
[1728300558699,0.40731,2455.8,2455.7,0.4073]
[1728300558881,0.40731,2455.7,2455.6,4.03071]
[1728300559086,0.82421,2455.7,2455.6,4.03071]
[1728300559887,0.4169,2455.7,2455.6,4.03071]
[1728300560496,3.81,2456.1,2455.6,3.6234]
[1728300560696,0.40728,2456.0,2455.9,0.40727]
[1728300561332,0.4169,2456.1,2456.0,0.40726]
[1728300561560,0.82415,2456.1,2456.0,0.40726]
[1728300565199,0.4169,2456.1,2455.7,1.86278]
[1728300565405,0.40731,2455.9,2455.8,0.40728]
[1728300566104,0.40731,2455.7,2455.6,4.03071]
[1728300567098,0.80161,2455.7,2455.6,4.03071]
[1728300567302,4.61161,2455.7,2455.6,3.6234]
[1728300567600,4.61161,2455.7,2455.6,4.03073]
[1728300568100,0.80161,2455.7,2455.6,4.03073]
[1728300570704,4.87361,2455.7,2455.6,3.2078]
[1728300570908,8.68361,2455.7,2455.6,3.2078]
[1728300573707,0.24804145,2455.9,2455.6,7.2798]
[1728300573904,0.24804145,2455.9,2455.8,0.4073]
[1728300574208,0.40731,2455.8,2455.7,0.4073]
[1728300574493,4.21729,2455.9,2455.8,0.4073]
[1728300575013,0.4012,2456.1,2455.7,1.01829]
[1728300575206,0.80845,2456.1,2456.0,0.40726]
[1728300575810,0.40724,2456.2,2456.1,0.40723]
[1728300576109,5.63571,2456.4,2455.9,4.226]
[1728300576110,0.3878,2456.4,2455.9,4.226]
[1728300576413,0.40723,2456.3,2456.2,0.40722]
[1728300582615,0.79501,2456.4,2456.3,0.40721]
[1728300585614,8.269,2456.4,2455.8,4.22602]
[1728300585814,0.40723,2456.3,2456.2,0.40722]
[1728300586018,0.40724,2456.2,2456.1,0.40723]
[1728300589319,1.20665966,2456.3,2456.2,0.40723]
[1728300589520,0.40722,2456.3,2456.2,0.40723]
[1728300591224,0.79943966,2456.5,2455.8,7.0178]
[1728300591591,0.40717,2456.6,2456.5,0.40718]
[1728300591683,4.47757,2456.6,2456.5,0.40718]
[1728300591926,0.40721,2456.4,2456.3,0.4072]
[1728300592124,5.01662966,2456.5,2456.4,0.40718]
[1728300593430,0.40721,2456.4,2456.3,0.4072]
[1728300593726,1.20664966,2456.4,2456.3,0.4072]
[1728300594489,0.40721,2456.4,2456.3,0.4072]
[1728300596158,0.40721,2456.3,2456.2,0.79662]
[1728300596322,0.83291,2456.3,2456.2,0.79662]
[1728300598026,4.64291,2456.3,2456.2,0.79662]
[1728300598714,4.64291,2456.3,2456.2,0.3894]
[1728300599820,0.40725,2456.1,2456.0,0.40725]
[1728300600327,3.81,2456.1,2455.9,0.3838]
[1728300600641,0.40728,2455.9,2455.8,3.2078]
[1728300600952,4.21728,2455.9,2455.8,3.2078]
[1728300601186,4.60268,2455.9,2455.8,3.2078]
[1728300601573,15.09548,2455.9,2455.8,3.2078]
[1728300601811,0.40731,2455.7,2455.6,0.3838]
[1728300601900,4.21731,2455.7,2455.6,0.3838]
[1728300603500,4.21731,2455.7,2455.6,0.79113]
[1728300604034,4.21731,2455.7,2455.6,0.3838]
[1728300604341,3.2078,2455.9,2455.8,0.4073]
[1728300604532,0.40726,2456.1,2456.0,0.40726]
[1728300604836,3.6308,2456.2,2455.8,0.3873]
[1728300605128,4.03803,2456.2,2455.8,0.3873]
[1728300605329,0.40725,2456.1,2456.0,0.40725]
[1728300606026,0.40725,2456.1,2455.8,0.3873]
[1728300606027,4.03804,2456.2,2456.1,0.40725]
[1728300608226,0.40725,2456.1,2456.0,0.40725]
[1728300609427,3.2078,2456.2,2456.1,0.40725]
[1728300609630,0.40724,2456.2,2456.1,0.40724]
[1728300612132,0.40725,2456.1,2456.0,0.40725]
[1728300612833,1.01808,2456.2,2455.9,3.2078]
[1728300613043,0.40726,2456.0,2455.9,3.61506]
[1728300613943,0.40726,2456.1,2456.0,0.40725]
[1728300615241,0.40724,2456.2,2456.1,0.40723]
[1728300615541,1.61645298,2456.4,2456.3,0.40721]
[1728300616870,1.61645298,2456.4,2455.9,3.2078]
[1728300616871,6.29844298,2456.4,2455.9,3.2078]
[1728300617377,0.40725,2456.2,2456.1,0.40724]
[1728300618940,0.40726,2456.1,2456.0,0.40725]
[1728300619145,0.40724,2456.2,2456.1,0.40724]
[1728300619645,1.20727298,2456.3,2456.2,0.40723]
[1728300619844,0.40723,2456.3,2456.2,0.40723]
[1728300620598,1.20924298,2456.4,2456.0,1.01816]
[1728300620913,0.40722,2456.3,2456.2,0.40722]
[1728300621348,1.20924298,2456.4,2456.0,1.01816]
[1728300621555,1.20924298,2456.4,2455.9,4.22599]
[1728300621757,0.40724,2456.2,2456.1,0.40723]
[1728300621951,2.22724298,2456.4,2456.2,0.40722]
[1728300621952,0.40723,2456.3,2456.2,0.40722]
[1728300622256,0.40726,2456.1,2456.0,0.40725]
[1728300622655,0.40724,2456.2,2456.1,0.40724]
[1728300623174,0.40724,2456.2,2455.9,3.2078]
[1728300623175,1.01804,2456.3,2455.9,3.2078]
[1728300623355,0.40726,2456.1,2456.0,0.40725]
[1728300623553,0.40726,2456.1,2456.0,0.80325]
[1728300623857,0.40726,2456.1,2456.0,4.87445]
[1728300624955,0.40723,2456.3,2456.2,0.40722]
[1728300626349,3.81,2456.3,2456.0,0.396]
[1728300626563,0.40725,2456.1,2456.0,0.396]
[1728300628845,0.40725,2456.1,2455.7,0.4073]
[1728300628846,0.40731,2455.8,2455.7,0.4073]
[1728300629055,0.40731,2455.8,2455.7,0.8149]
[1728300629260,0.40731,2455.8,2455.7,4.8869]
[1728300630545,0.40731,2455.8,2455.7,0.8149]
[1728300632562,0.40729,2455.9,2455.8,0.4073]
[1728300632858,0.4073,2455.8,2455.7,0.81491]
[1728300633271,0.8052,2455.8,2455.7,0.81491]
[1728300633495,0.8052,2455.8,2455.6,3.2078]
[1728300633496,0.3979,2455.8,2455.6,3.2078]
[1728300633748,0.40731,2455.7,2455.6,3.2078]
[1728300633871,0.40735,2455.5,2455.4,0.81036]
[1728300634060,0.40735,2455.5,2455.4,0.403]
[1728300634464,1.20545,2455.5,2455.4,0.81036]
[1728300637965,0.7981,2455.5,2455.4,0.81036]
[1728300638162,1.20545,2455.5,2455.4,0.81036]
[1728300638957,0.7981,2455.5,2455.4,0.81036]
[1728300639668,0.40731,2455.8,2455.7,0.4073]
[1728300641465,4.6382,2455.9,2455.4,0.7936]
[1728300641764,0.8282,2455.9,2455.8,0.4073]
[1728300642460,0.8282,2455.9,2455.6,0.3836]
[1728300642669,1.23549,2455.9,2455.8,0.4073]
[1728300646075,0.8282,2455.9,2455.8,0.4073]
[1728300646465,1.23548,2455.9,2455.8,0.4073]
[1728300646670,0.81078,2455.9,2455.8,0.4073]
[1728300647169,4.62078,2455.9,2455.8,0.4073]
[1728300648874,0.40731,2455.8,2455.7,0.4073]
[1728300650469,0.40732,2455.7,2455.6,0.40732]
[1728300650771,0.40735,2455.5,2455.4,0.403]
[1728300651074,1.19493,2455.6,2455.4,0.403]
[1728300651274,0.79755,2455.5,2455.4,0.403]
[1728300652272,4.2002,2455.5,2455.0,0.4202]
[1728300652574,0.40737,2455.4,2455.1,0.8313]
[1728300652768,4.2002,2455.5,2455.1,0.4239]
[1728300653198,0.4074,2455.2,2455.1,0.4239]
[1728300653408,5.21859,2455.5,2455.1,0.4239]
[1728300653518,5.21859,2455.5,2455.1,0.83131]
[1728300653519,0.40739,2455.3,2455.1,0.83131]
[1728300655171,5.21859,2455.5,2455.1,0.4239]
[1728300655378,1.42579,2455.4,2455.1,0.8313]
[1728300655679,0.4074,2455.2,2455.1,0.4239]
[1728300656377,4.2174,2455.2,2455.1,0.4239]
[1728300658173,4.82851,2455.2,2454.7,1.01869]
[1728300658476,0.7912,2455.1,2455.0,0.40741]
[1728300658684,1.19861,2455.1,2455.0,0.40741]
[1728300659396,0.7912,2455.1,2455.0,0.40741]
[1728300659637,4.2084,2455.6,2455.4,0.40735]
[1728300660270,0.40736,2455.5,2455.4,0.40735]
[1728300660277,8.2812,2455.6,2454.9,3.7248]
[1728300660285,0.40737,2455.4,2455.3,0.40737]
[1728300660624,5.22674,2455.6,2455.5,0.40735]
[1728300660625,4.21734,2455.6,2455.5,0.40735]
[1728300660801,0.40735,2455.6,2455.4,0.40735]
[1728300660904,0.40735,2455.6,2455.5,0.80835]
[1728300661072,1.20322,2455.7,2455.5,0.401]
[1728300661368,0.81242,2455.7,2455.6,0.40733]
[1728300661608,0.40733,2455.6,2455.5,0.401]
[1728300661772,0.4051,2455.7,2455.5,0.80835]
[1728300661977,0.4051,2455.7,2455.5,0.401]
[1728300662238,0.40733,2455.6,2455.5,0.401]
[1728300662490,0.40733,2455.6,2455.2,0.40739]
[1728300662491,0.40738,2455.3,2455.2,0.40739]
[1728300662788,0.40737,2455.4,2455.3,0.40737]
[1728300664286,0.40736,2455.5,2455.3,0.40737]
[1728300664482,0.4051,2455.7,2455.5,0.40735]
[1728300664693,0.40733,2455.6,2455.5,0.40735]
[1728300667180,1.42341,2455.7,2455.4,0.3862]
[1728300667391,0.40734,2455.6,2455.5,0.40733]
[1728300674388,0.3908,2455.9,2455.5,0.40733]
[1728300674389,0.79808,2455.9,2455.8,0.4073]
[1728300674598,1.0181,2456.2,2455.6,3.81]
[1728300674599,0.7721,2456.2,2455.6,3.81]
[1728300674794,0.80037767,2456.4,2455.9,1.0182]
[1728300675018,1.59548767,2456.4,2456.3,0.40721]
[1728300675195,1.59548767,2456.4,2456.0,0.7762]
[1728300675196,0.40723,2456.3,2456.2,0.40722]
[1728300675558,1.40592,2456.4,2456.0,0.3841]
[1728300675689,0.40725,2456.1,2456.0,0.79136]
[1728300676298,0.40724,2456.2,2456.1,0.40725]
[1728300676687,0.40725,2456.1,2456.0,0.79136]
[1728300677287,0.79235,2456.1,2456.0,0.79136]
[1728300677682,0.3851,2456.1,2456.0,0.79136]
[1728300677900,0.3879,2456.4,2456.3,0.40721]
[1728300678893,0.7951,2456.4,2456.3,0.40721]
[1728300679222,1.18468633,2456.7,2456.1,4.64512]
[1728300679463,1.99804633,2456.7,2456.6,0.40716]
[1728300679616,1.19846,2456.7,2456.6,0.40716]